bitfinex/quotes_ETHUSD_20250801
["timestamp","ask_amount","ask_price","bid_price","bid_amount"]
[1754056738364,1.6905,3599.8,3598.0,2.80705481]
[1754056738552,1.6905,3599.7,3598.1,2.7792446]
[1754056738770,1e-08,3600.1,3597.9,0.9302]
[1754056738771,1.6905,3599.6,3598.2,0.02779167]
[1754056738943,1.6905,3599.5,3598.2,2.77916736]
[1754056739140,1.6905,3599.5,3598.0,3.0]
[1754056739141,1.2321,3599.4,3598.9,2.77861238]
[1754056739353,1.2321,3599.4,3598.5,2.77891841]
[1754056739657,1.2321,3599.4,3598.6,0.02778858]
[1754056739860,1.2321,3599.9,3598.5,3.0]
[1754056740057,0.4584,3599.8,3598.8,3.0]
[1754056740295,1.2321,3599.7,3598.8,3.0]
[1754056740577,0.4584,3599.6,3599.0,2.77853]
[1754056740788,1e-08,3600.1,3599.1,0.02778472]
[1754056740989,1e-08,3600.1,3600.0,2.77777777]
[1754056742808,1e-08,3600.1,3600.0,5.77777777]
[1754056743096,1e-08,3600.1,3600.0,6.70797777]
[1754056743474,1e-08,3600.1,3600.0,5.77777777]
[1754056746276,1e-08,3600.1,3600.0,6.70797777]
[1754056746688,1e-08,3600.1,3600.0,5.77777777]
[1754056747201,1e-08,3600.1,3600.0,5.91697777]
[1754056750618,1e-08,3600.1,3600.0,6.84717777]
[1754056751017,0.001,3601.0,3600.9,2.7770835]
[1754056751631,0.001,3601.0,3600.9,2.9162835]
[1754056751931,1.6451,3601.0,3600.9,0.1392]
[1754056753601,1.6451,3601.0,3600.9,2.9162835]
[1754056754616,0.001,3601.0,3600.9,2.94405433]
[1754056754815,0.001,3601.0,3600.9,2.9162835]
[1754056756067,0.001,3601.0,3600.9,5.9162835]
[1754056756535,1e-08,3601.0,3600.9,5.9162835]
[1754056756734,1e-08,3601.0,3600.9,6.8138835]
[1754056756936,1e-08,3601.0,3600.9,5.9162835]
[1754056757334,1e-08,3601.0,3600.9,5.7770835]
[1754056757515,1e-08,3601.0,3600.9,2.7770835]
[1754056758142,1.64410001,3601.0,3600.9,2.7770835]
[1754056758640,1e-08,3601.0,3600.9,2.80485433]
[1754056758847,1e-08,3601.0,3600.9,2.7770835]
[1754056759333,1e-08,3601.0,3600.9,3.6746835]
[1754056760334,1e-08,3601.4,3601.3,5.77677505]
[1754056760661,1e-08,3601.4,3601.3,2.77677505]
[1754056761030,1e-08,3601.4,3601.3,2.8045428]
[1754056761230,1e-08,3601.4,3601.3,2.77677505]
[1754056761533,1e-08,3601.4,3601.3,2.8045428]
[1754056761734,1e-08,3601.4,3601.3,2.77677505]
[1754056763758,1e-08,3601.4,3601.3,4.2895428]
[1754056765345,1e-08,3601.4,3601.3,4.72283088]
[1754056765868,1e-08,3601.4,3601.3,4.95390041]
[1754056766381,1e-08,3601.4,3601.3,5.27122492]
[1754056766525,1e-08,3601.4,3601.3,4.52061233]
[1754056766728,1.6441,3604.1,3603.7,3.0]
[1754056766925,0.833615,3606.5,3604.3,3.0]
[1754056766926,1.2017,3605.2,3604.3,3.0]
[1754056767172,1.2017,3605.2,3605.1,2.77384815]
[1754056767353,1.2017,3605.2,3605.1,2.91224815]
[1754056767674,1.2017,3605.2,3605.1,0.1384]
[1754056767869,1.2017,3605.2,3604.4,2.77437492]
[1754056768072,1.2017,3605.2,3604.8,0.1384]
[1754056768245,1.2017,3605.2,3605.1,0.1384]
[1754056768961,1.6441,3605.2,3605.1,0.1384]
[1754056769553,1.6441,3605.2,3603.5,0.20787712]
[1754056769755,2.77243981,3607.0,3602.5,0.4358]
[1754056769756,1.90161955,3605.1,3602.5,0.4358]
[1754056770072,0.55,3604.9,3603.8,0.1384]
[1754056770263,0.55,3605.8,3601.8,2.77638958]
[1754056770264,1.90161955,3604.8,3601.8,2.77638958]
[1754056770463,2.77278638,3606.5,3601.8,2.77638958]
[1754056770464,1.92950888,3604.7,3602.0,3.0]
[1754056770668,1.90161955,3604.6,3602.6,2.77571098]
[1754056770870,0.02788933,3604.5,3602.7,2.77569048]
[1754056771084,1.6441,3604.4,3602.0,2.77623542]
[1754056771385,1.6441,3604.3,3602.1,3.02776158]
[1754056771585,1.6441,3604.2,3601.8,0.21333769]
[1754056771750,0.55,3604.5,3601.8,0.21333769]
[1754056772069,0.55,3604.5,3602.0,2.776215]
[1754056772070,1.6441,3604.1,3602.0,2.776215]
[1754056772230,1.6441,3604.0,3601.1,2.77692927]
[1754056772432,0.55,3603.8,3602.0,2.77621487]
[1754056772635,1.6441,3603.7,3601.1,2.80469597]
[1754056772830,1.6441,3603.6,3602.1,3.0]
[1754056773154,0.55,3604.2,3602.1,3.0]
[1754056773155,1.6441,3603.5,3602.1,3.0]
[1754056773358,2.77361486,3605.5,3601.0,1.18592575]
[1754056773359,1.67198933,3603.4,3601.0,0.21056572]
[1754056773544,1.6441,3603.3,3601.5,2.77659678]
[1754056773735,1.6441,3603.2,3601.5,2.77659678]
[1754056773934,1.6441,3603.1,3601.5,2.77659678]
[1754056774164,1.6441,3603.0,3601.4,2.77668871]
[1754056774367,0.55,3603.6,3601.4,2.77668871]
[1754056774554,1.6441,3602.9,3601.5,2.77661618]
[1754056774759,1.6441,3602.8,3601.4,2.77668366]
[1754056774940,3.55,3603.8,3600.9,3.0]
[1754056775142,1.6441,3602.7,3600.9,3.0]
[1754056775346,1.6951,3602.6,3601.1,2.77692927]
[1754056775556,1.2505,3602.5,3601.6,2.77648373]
[1754056775870,1.2505,3602.5,3601.7,2.77645054]
[1754056776237,1.2505,3602.5,3601.3,3.0]
[1754056776440,1.2505,3602.5,3601.9,2.77624636]
[1754056776777,0.4446,3602.4,3601.6,2.77651983]
[1754056776974,1.2505,3602.3,3602.0,2.77622458]
[1754056777174,1.2505,3602.3,3601.6,2.77647122]
[1754056777361,1.2505,3602.2,3601.3,3.0]
[1754056777680,1.2505,3602.7,3601.3,4.14022469]
[1754056777839,1.2505,3602.7,3601.3,1.3635]
[1754056778043,1.2505,3602.7,3602.3,2.77595255]
[1754056778244,1.2505,3603.2,3601.7,1.3635]
[1754056778463,1.2505,3603.2,3601.8,0.02776389]
[1754056778674,0.4446,3603.1,3601.4,0.8976]
[1754056778976,0.4446,3603.1,3601.8,0.02776389]
[1754056779178,0.4446,3603.1,3601.8,0.92536389]
[1754056779389,1.2505,3603.2,3601.8,1.39126389]
[1754056779790,1.2505,3603.2,3601.8,1.3635]
[1754056780190,1.2505,3603.2,3603.1,0.1384]
[1754056780492,1.6951,3603.2,3603.1,0.1384]
[1754056782583,1.6951,3603.2,3601.6,0.55]
[1754056782772,1.6951,3603.1,3603.0,0.1384]
[1754056783245,1.2505,3603.1,3603.0,0.1384]
[1754056783448,1.6951,3603.1,3603.0,0.1384]
[1754056785060,1.2505,3603.1,3603.0,0.1384]
[1754056785596,1.2505,3603.6,3603.0,0.1384]
[1754056785797,0.25928556,3603.5,3603.0,0.1384]
[1754056785983,0.25928556,3603.5,3603.4,0.1384]
[1754056786184,1.95438556,3603.5,3603.4,0.1384]
[1754056788362,1.95459508,3603.5,3603.4,0.1384]
[1754056789385,1.95459508,3603.5,3603.0,0.1384]
[1754056789585,1.6951,3603.4,3603.0,0.1384]
[1754056789796,0.1384,3603.6,3603.0,0.1384]
[1754056789996,1.2505,3603.3,3602.3,0.8577]
[1754056790197,0.4446,3603.7,3602.3,0.8577]
[1754056790410,0.2595708,3603.6,3602.4,0.4659]
[1754056790588,0.2595708,3603.6,3602.5,1.4077]
[1754056790771,0.25954305,3603.5,3602.6,1.3236]
[1754056790967,1.2505,3604.1,3603.5,0.1384]
[1754056791167,0.25954163,3604.0,3603.4,0.1384]
[1754056791363,0.25954163,3603.9,3602.9,1.3236]
[1754056791564,0.25954163,3603.8,3602.9,1.3236]
[1754056791769,1.2505,3604.1,3603.8,0.1384]
[1754056792067,1.95466041,3604.0,3603.7,0.1384]
[1754056792268,0.25956041,3603.9,3602.6,0.55]
[1754056792477,1.6951,3603.9,3602.6,0.55]
[1754056792704,1.2505,3604.7,3602.8,0.55]
[1754056792911,0.25953748,3604.6,3603.0,0.55]
[1754056793109,0.25953748,3604.5,3603.4,3.55]
[1754056793328,0.25953748,3604.4,3603.6,0.55]
[1754056793472,1.2505,3605.2,3603.7,1.3236]
[1754056793809,0.70408539,3605.1,3603.5,0.02775079]
[1754056794009,0.25948539,3605.0,3603.6,1.3236]
[1754056794210,0.25948539,3604.9,3603.6,1.3236]
[1754056794387,0.25948539,3604.8,3603.6,1.3236]
[1754056794732,0.25948539,3604.7,3603.6,1.3236]
[1754056795016,0.25948539,3604.6,3603.6,1.3236]
[1754056795305,1.6951,3604.5,3603.2,0.8577]
[1754056795506,1.2505,3604.4,3603.0,0.4659]
[1754056795866,1.2505,3604.4,3603.0,1.3236]
[1754056796293,1.2505,3604.3,3602.2,2.77603937]
[1754056796600,0.4446,3604.2,3602.6,0.55]
[1754056796816,1.2505,3604.1,3602.6,0.55]
[1754056797472,0.4446,3604.0,3602.0,1.3236]
[1754056797672,1.2505,3603.9,3602.3,0.02776004]
[1754056798007,1.2505,3603.9,3602.4,1.8736]
[1754056798206,1.2505,3603.9,3602.6,0.55]
[1754056798405,1.2505,3604.4,3603.4,0.002]
[1754056798610,0.25936562,3604.3,3603.4,0.002]
[1754056798813,1.6951,3604.3,3603.4,0.002]
[1754056799218,1.6951,3604.2,3603.4,0.002]
[1754056799415,1.6951,3604.1,3603.4,0.002]
[1754056799632,1.6951,3604.0,3603.4,0.002]
[1754056799831,1.6951,3603.9,3603.4,0.002]
[1754056800034,1.6951,3603.8,3603.4,0.002]
[1754056800333,1.72298933,3603.7,3600.2,0.8577]
[1754056800533,2.2451,3603.6,3599.9,2.77778229]
[1754056800685,0.55,3603.4,3599.8,0.4659]
[1754056800888,3.477,3603.0,3600.3,0.4659]
[1754056801104,0.55,3602.8,3600.3,0.4659]
[1754056801424,0.02788933,3602.7,3599.8,1.3236]
[1754056801623,2.2451,3602.6,3599.8,1.3236]
[1754056801828,1.6951,3602.5,3599.9,0.34243638]
[1754056802125,1.6951,3602.5,3600.3,0.8577]
[1754056802423,1.72298933,3602.4,3600.3,0.8577]
[1754056802679,1.6951,3602.4,3600.3,0.8577]
[1754056802787,0.1392,3602.2,3601.7,0.1392]
[1754056802987,1.6951,3602.1,3601.7,0.1392]
[1754056803220,0.1384,3602.6,3602.0,0.1392]
[1754056803432,0.82418986,3603.3,3602.0,0.1392]
[1754056803433,1.2505,3602.5,3602.0,0.1392]
[1754056803588,1.2505,3602.5,3601.3,0.8577]
[1754056803589,1.2505,3602.5,3602.3,0.1392]
[1754056803884,0.4446,3603.0,3601.4,0.02776697]
[1754056804083,0.4446,3603.0,3600.9,0.002]
[1754056804084,0.1384,3602.6,3602.1,0.1392]
[1754056804340,0.1384,3602.6,3600.9,0.002]
[1754056804341,1.2505,3602.5,3601.2,0.8299]
[1754056804688,1.2505,3602.5,3602.4,0.1384]
[1754056804887,1.6951,3602.5,3602.4,0.1384]
[1754056805121,1.698,3602.5,3602.4,0.1384]
[1754056805322,1.8364,3602.5,3600.9,0.002]
[1754056805493,0.1392,3601.7,3601.2,0.1392]
[1754056805700,0.1392,3601.7,3600.9,0.002]
[1754056805701,1.5851,3601.6,3600.9,0.002]
[1754056805892,0.55,3601.5,3600.9,0.002]
[1754056806093,0.1392,3601.4,3600.9,0.1412]
[1754056806302,1.5851,3601.3,3600.9,0.1412]
[1754056806498,1.1376,3601.8,3600.9,0.002]
[1754056806839,1.1376,3601.8,3601.2,0.1392]
[1754056807051,1.1376,3602.2,3600.9,0.002]
[1754056807227,1.1376,3602.2,3601.7,0.1392]
[1754056807428,1.5851,3602.1,3602.0,0.1392]
[1754056807726,1.5851,3602.1,3601.5,0.1392]
[1754056807892,1.7243,3602.0,3601.5,0.1392]
[1754056808094,1.61298933,3601.9,3601.5,0.1392]
[1754056808525,0.55,3601.7,3600.9,0.002]
[1754056808727,0.1392,3601.1,3600.9,0.002]
[1754056808932,0.55,3601.0,3600.9,0.002]
[1754056809145,0.55,3601.0,3599.6,0.002]
[1754056809146,2.16298933,3601.0,3600.0,0.1392]
[1754056809292,0.1392,3600.0,3599.6,0.002]
[1754056809498,0.02788933,3599.9,3599.6,0.002]
[1754056809695,1.5851,3599.9,3599.6,0.002]
[1754056809959,1.1376,3600.2,3599.8,0.1392]
[1754056810294,1.5851,3600.1,3599.8,0.1392]
[1754056810471,1.61298933,3600.0,3599.6,0.002]
[1754056810643,0.1392,3599.7,3597.2,2.77993995]
[1754056810852,0.1392,3599.3,3598.7,0.1392]
[1754056811158,0.1392,3599.3,3597.3,3.02779862]
[1754056811159,1.5851,3599.2,3599.0,0.1392]
[1754056811485,0.82174272,3600.2,3599.0,0.1392]
[1754056811486,1.1376,3599.8,3599.0,0.1392]
[1754056811785,1.95934272,3600.2,3599.1,0.02778472]
[1754056811984,1.95934272,3600.2,3599.7,0.1392]
[1754056812186,1.95934272,3600.2,3598.4,1.2788]
[1754056812187,1.5851,3600.1,3598.4,1.2788]
[1754056812386,1.5851,3600.1,3599.8,0.1392]
[1754056812591,0.4475,3600.1,3599.8,0.1392]
[1754056812752,0.82174272,3600.2,3598.2,3.0]
[1754056812753,1.5851,3600.0,3599.9,0.1392]
[1754056812951,1.61298933,3600.0,3598.3,0.55]
[1754056813167,1.5851,3599.9,3599.5,0.1392]
[1754056813692,1.5851,3599.8,3599.5,0.1392]
[1754056813867,1.5851,3599.7,3599.5,0.1392]
[1754056814070,0.1392,3600.0,3599.5,0.1392]
[1754056814497,1.95934272,3600.2,3598.9,0.02778626]
[1754056814795,1.95934272,3600.2,3599.0,0.55]
[1754056814999,0.82174272,3600.2,3600.1,0.1392]
[1754056815357,2.40684272,3600.2,3600.1,0.1392]
[1754056815589,0.82174272,3600.2,3599.0,0.57778549]
[1754056815790,0.82174272,3600.2,3600.1,0.1392]
[1754056817299,0.20543568,3600.2,3600.1,0.1392]
[1754056818263,0.20543568,3600.2,3600.1,0.34608]
[1754056818499,1.79053568,3600.2,3600.1,0.1392]
[1754056819597,0.20543568,3600.2,3600.1,0.34695617]
[1754056819797,0.20543568,3600.2,3600.1,0.1392]
[1754056819977,0.20543568,3600.2,3600.1,0.1412]
[1754056820597,0.20543568,3600.2,3600.1,0.35087539]
[1754056820896,1.1376,3600.7,3600.1,0.1412]
[1754056821292,1.1376,3600.7,3600.3,0.1392]
[1754056821617,0.1392,3600.3,3600.1,0.002]
[1754056821761,0.1392,3600.3,3599.7,0.002]
[1754056821964,0.1392,3600.0,3599.7,0.002]
[1754056822162,1.5851,3600.2,3599.7,0.002]
[1754056822366,0.1392,3600.4,3599.9,0.1392]
[1754056822599,0.4475,3600.0,3599.9,0.1392]
[1754056822807,0.55,3602.0,3599.9,0.1392]
[1754056822968,0.4475,3600.0,3599.9,0.1392]
[1754056823163,1.2768,3600.5,3599.9,0.1392]
[1754056823369,1.1376,3600.5,3600.2,0.1392]
[1754056823606,1.5851,3600.4,3599.7,0.002]
[1754056823811,1.5851,3600.4,3600.0,0.1392]
[1754056823992,3.0,3601.6,3599.7,0.002]
[1754056823993,1.61298933,3600.3,3599.7,0.002]
[1754056824300,1.7243,3600.3,3599.7,0.1412]
[1754056824807,1.5851,3600.3,3599.9,0.1392]
[1754056824988,0.1392,3600.5,3599.9,0.1392]
[1754056825251,1.5851,3600.2,3599.7,0.002]
[1754056825376,0.02788933,3600.1,3599.3,0.1392]
[1754056825578,0.1392,3599.9,3599.3,0.1392]
[1754056825878,1.5851,3599.8,3599.3,0.1392]
[1754056826187,1.5851,3599.7,3599.3,0.1392]
[1754056826390,1.5851,3599.6,3599.3,0.1392]
[1754056826605,1.5851,3599.5,3598.2,3.0]
[1754056826783,1.5851,3599.4,3599.0,0.1392]
[1754056827102,1.61298933,3599.3,3597.6,0.8173]
[1754056827271,0.1392,3599.2,3598.7,0.1392]
[1754056827673,1.5851,3599.1,3598.7,0.1392]
[1754056827863,1.5851,3599.0,3598.7,0.1392]
[1754056828070,1.5851,3598.9,3598.7,0.1392]
[1754056828409,1.5851,3598.8,3597.9,0.20699843]
[1754056828609,1.61298933,3598.7,3596.9,0.002]
[1754056828794,0.1392,3598.3,3597.8,0.1392]
[1754056829020,1.61298933,3598.7,3596.9,0.2085811]
[1754056829021,1.61298933,3598.2,3596.9,0.2085811]
[1754056829310,0.1392,3597.8,3597.2,0.1392]
[1754056829511,1.5851,3597.7,3597.2,0.1392]
[1754056829725,1.5851,3597.6,3597.2,0.1392]
[1754056829888,0.1392,3597.8,3596.9,0.002]
[1754056830218,0.1392,3597.3,3596.9,0.002]
[1754056830577,0.02788933,3597.2,3596.9,0.002]
[1754056830785,0.1392,3597.1,3596.9,0.002]
[1754056830984,3.0,3598.6,3597.0,0.1392]
[1754056831204,3.0,3598.6,3596.9,0.002]
[1754056831205,1.43608933,3598.5,3596.9,0.002]
[1754056831509,0.1392,3597.3,3596.9,0.002]
[1754056832015,1.61298933,3597.2,3595.0,0.4469]
[1754056832212,2.1351,3597.1,3595.0,0.4469]
[1754056832510,0.1392,3596.2,3595.7,0.1392]
[1754056832738,0.1392,3596.6,3596.1,0.1392]
[1754056832917,0.1392,3596.9,3596.1,0.1392]
[1754056833113,0.1392,3596.9,3596.4,0.1392]
[1754056833420,0.1392,3596.9,3595.8,0.4469]
[1754056833421,1.1376,3597.0,3596.6,0.1392]
[1754056833582,6.676,3597.5,3595.4,0.55]
[1754056833583,1.61298933,3596.9,3595.4,0.55]
[1754056833779,1.7243,3596.9,3596.4,0.1392]
[1754056833981,6.676,3597.5,3594.8,1.1783]
[1754056833982,1.61298933,3596.8,3594.8,1.1783]
[1754056834201,0.1392,3596.4,3595.9,0.1392]
[1754056834411,1.1376,3596.3,3595.9,0.1392]
[1754056834615,0.4475,3596.3,3595.9,0.1392]
[1754056834796,1.1376,3596.2,3595.9,0.1392]
[1754056834999,1.1376,3596.1,3595.9,0.1392]
[1754056835581,0.06066014,3596.4,3595.9,0.1392]
[1754056835781,1.3786,3596.7,3596.0,0.1392]
[1754056835996,5.028,3597.4,3596.2,0.1392]
[1754056836315,0.1392,3597.1,3596.6,0.1392]
[1754056836519,1.2394,3597.0,3596.6,0.1392]
[1754056836720,1.7043,3596.9,3596.6,0.1392]
[1754056837027,1.8435,3596.8,3596.1,0.1392]
[1754056837195,0.1392,3596.4,3595.9,0.1392]
[1754056837520,1.7043,3596.3,3595.8,0.1392]
[1754056837694,0.1392,3596.4,3595.8,0.1392]
[1754056837901,1.2394,3596.3,3595.8,0.1392]
[1754056838208,1.2394,3596.2,3595.8,0.1392]
[1754056838413,0.63533,3596.8,3595.2,1.6195]
[1754056838589,1.2394,3596.2,3594.4,1.1901]
[1754056838784,1.2394,3596.2,3594.3,0.4294]
[1754056838785,0.49278933,3596.1,3594.3,0.4294]
[1754056839003,1.41261893,3596.0,3594.3,0.4294]
[1754056839217,0.4649,3595.9,3594.3,0.4294]
[1754056839398,1.2394,3595.8,3594.3,0.4294]
[1754056840100,0.4649,3595.7,3594.3,0.4294]
[1754056840298,0.4649,3595.7,3594.4,0.02782105]
[1754056840517,0.17043,3595.6,3594.4,0.02782105]
[1754056840698,1.40983,3595.6,3594.3,0.4294]
[1754056840892,1.2394,3595.6,3594.3,0.4294]
[1754056841295,1.2394,3595.6,3594.2,1.1901]
[1754056841528,1.2394,3595.6,3594.5,0.55]
[1754056841926,5.023,3596.1,3594.5,0.55]
[1754056842087,1.2394,3595.7,3594.5,0.55]
[1754056842292,0.4649,3595.6,3593.9,0.63628517]
[1754056842527,1.2394,3595.5,3594.0,0.002]
[1754056842837,0.5023,3596.0,3594.4,0.002]
[1754056843131,1.7043,3595.5,3594.4,0.002]
[1754056843287,15.6785455,3595.3,3594.4,0.002]
[1754056843712,1.2394,3595.4,3594.4,0.002]
[1754056843904,15.6785455,3596.0,3594.4,1.00922105]
[1754056843905,1.2394,3595.8,3594.4,1.00922105]
[1754056844307,0.17043,3596.8,3594.4,1.00922105]
[1754056844308,1.2394,3596.3,3594.6,0.55]
[1754056844629,1.2394,3596.3,3594.8,0.55]
[1754056844834,0.02788933,3596.2,3594.8,0.55]
[1754056844994,1.2394,3596.1,3594.8,0.55]
[1754056845400,0.02788933,3596.0,3594.8,0.55]
[1754056845644,1.7043,3595.9,3594.8,0.55]
[1754056845928,1.2394,3595.8,3594.4,0.552]
[1754056846142,0.4649,3595.7,3594.4,0.002]
[1754056846323,15.6785455,3595.3,3594.4,0.002]
[1754056846945,15.6785455,3594.5,3594.4,0.002]
[1754056847303,1.2394,3594.5,3594.4,0.002]
[1754056847603,1.2394,3595.1,3594.4,0.002]
[1754056847821,1.2394,3594.5,3594.4,0.002]
[1754056848630,0.4649,3594.8,3594.4,0.1412]
[1754056848832,1.2394,3594.5,3594.4,0.1412]
[1754056849043,6.682,3595.8,3594.5,0.55]
[1754056849250,6.682,3595.8,3594.7,0.55]
[1754056849251,1.2394,3595.7,3594.7,0.55]
[1754056849456,1.2394,3595.7,3595.5,0.1392]
[1754056849658,1.2394,3595.6,3595.5,0.1392]
[1754056849806,0.1392,3596.0,3595.5,0.1392]
[1754056850133,1.2394,3595.9,3595.5,0.1392]
[1754056850334,0.4649,3595.8,3595.3,0.1392]
[1754056850638,0.1392,3595.3,3594.8,0.1392]
[1754056850954,1.7043,3595.7,3594.4,0.002]
[1754056851160,6.7173,3595.7,3595.0,0.1392]
[1754056851499,1.2394,3595.7,3595.4,0.1392]
[1754056852025,1.2394,3596.5,3595.2,0.55]
[1754056852208,0.1392,3596.2,3595.6,0.1392]
[1754056852418,3.49592755,3596.5,3595.2,0.55]
[1754056852623,0.1392,3596.4,3595.9,0.1392]
[1754056852818,1.7043,3596.3,3595.9,0.1392]
[1754056853021,2.25652755,3596.5,3595.9,0.1392]
[1754056853307,2.39572755,3596.5,3595.9,0.1392]
[1754056853512,3.53400731,3596.4,3594.9,0.55]
[1754056853732,15.6785455,3595.9,3595.7,0.1392]
[1754056854009,15.8177455,3596.6,3596.1,0.1392]
[1754056854215,17.0571455,3596.6,3595.8,0.1392]
[1754056854525,5.009,3596.5,3596.1,0.1392]
[1754056854726,6.2484,3596.5,3596.1,0.1392]
[1754056854906,1.2394,3596.5,3596.1,0.1392]
[1754056855112,0.001,3597.0,3596.3,0.55]
[1754056855347,0.001,3597.0,3596.5,0.55]
[1754056855644,0.001,3597.0,3596.3,0.55]
[1754056856159,0.001,3597.0,3596.9,0.1392]
[1754056856310,0.001,3597.0,3596.9,0.6892]
[1754056856514,0.001,3597.0,3596.9,2.1695]
[1754056856812,0.4649,3598.6,3597.0,0.55]
[1754056857122,15.70643483,3598.9,3597.0,0.55]
[1754056857123,1.2394,3598.9,3597.1,0.57780017]
[1754056857326,1.2394,3599.4,3597.3,0.55]
[1754056857660,16.40270444,3599.3,3597.5,0.55]
[1754056857948,1.26728933,3599.2,3597.5,0.55]
[1754056858143,0.25923953,3599.1,3597.5,0.55]
[1754056858348,15.6785455,3598.6,3597.5,0.55]
[1754056858727,4.66343109,3601.3,3597.5,0.55]
[1754056858728,1.2394,3599.8,3597.7,0.55]
[1754056858929,0.25932312,3599.7,3597.9,3.55]
[1754056859125,16.9179455,3599.8,3598.1,0.55]
[1754056859323,3.68333198,3599.7,3598.1,0.55]
[1754056859528,3.39609455,3599.7,3598.1,0.55]
[1754056859828,3.42398388,3599.7,3598.1,0.55]
[1754056860021,3.39609455,3599.7,3598.1,0.55]
[1754056860349,1.2394,3599.6,3598.1,0.55]
[1754056860555,1.2394,3599.6,3598.3,0.55]
[1754056860749,1.69179455,3599.7,3598.5,0.55]
[1754056861053,1.2394,3600.1,3598.7,0.55]
[1754056861364,1.2394,3599.7,3597.7,0.4294]
[1754056861569,15.6785455,3599.2,3597.7,0.4294]
[1754056861717,1.73218933,3599.1,3597.5,6.681]
[1754056861924,15.6785455,3598.5,3597.2,0.4294]
[1754056862126,1.2394,3598.4,3597.2,0.4294]
[1754056862417,3.0,3600.5,3596.7,8.89695355]
[1754056862418,0.4649,3599.0,3597.3,0.02779862]
[1754056862616,1.2394,3598.8,3597.3,1.64729862]
[1754056862842,0.49278933,3598.7,3597.3,0.4294]
[1754056863040,16.9179455,3598.6,3596.7,9.32635355]
[1754056863243,6.679,3599.4,3596.7,9.32635355]
[1754056863244,15.6785455,3598.3,3596.7,8.89695355]
[1754056863455,6.72818933,3598.2,3596.7,8.89695355]
[1754056863640,1.2394,3598.1,3596.7,8.89695355]
[1754056863840,1.2394,3598.1,3596.8,3.0]
[1754056864060,1.2394,3598.1,3596.9,0.02780171]
[1754056864256,1.2394,3598.4,3597.0,0.55]
[1754056864960,1.2394,3598.4,3596.7,8.89695355]
[1754056864961,15.6785455,3597.3,3596.7,8.89695355]
[1754056865121,1.2394,3597.2,3596.7,8.89695355]
[1754056865329,1.1817,3597.1,3596.7,8.89695355]
[1754056865858,1.1817,3598.1,3596.8,4.65880249]
[1754056866074,1.1817,3598.1,3596.9,0.55]
[1754056866232,1.1817,3598.6,3597.0,3.0]
[1754056866419,1.1817,3598.6,3598.1,0.55]
[1754056866621,0.46,3598.8,3597.2,0.55]
[1754056866622,0.46,3598.8,3598.5,0.1392]
[1754056866962,0.3988838,3598.7,3598.2,0.1392]
[1754056867268,1.86742673,3598.6,3597.2,0.55]
[1754056867442,0.25970535,3598.5,3598.1,0.1392]
[1754056867766,1.6417,3598.4,3598.1,0.1392]
[1754056868169,1.1817,3598.3,3597.1,0.55]
[1754056868327,1.1817,3598.8,3598.3,0.1392]
[1754056868635,1.92935795,3598.7,3597.2,3.23246321]
[1754056868839,1.3209,3598.6,3598.1,0.1392]
[1754056869045,1.3209,3598.6,3597.3,2.77979095]
[1754056869046,1.7809,3598.6,3597.3,2.77979095]
[1754056869248,15.6785455,3598.2,3597.0,3.0]
[1754056869460,6.67512455,3598.8,3596.7,8.89695355]
[1754056869461,15.6785455,3597.4,3596.7,8.89695355]
[1754056869771,0.1392,3597.2,3596.7,8.89695355]
[1754056869948,1.6417,3597.1,3596.7,8.89695355]
[1754056870150,1.6417,3597.0,3596.7,8.89695355]
[1754056870336,1.6417,3596.9,3596.7,8.89695355]
[1754056870542,1.6417,3596.8,3596.7,8.89695355]
[1754056870772,1.6417,3597.4,3596.7,9.03615355]
[1754056870971,1.1817,3597.4,3596.7,9.03615355]
[1754056871177,1.6417,3597.4,3597.0,0.1392]
[1754056871477,0.1392,3596.8,3596.7,8.89695355]
[1754056871776,1.7809,3596.8,3596.1,0.1392]
[1754056871943,0.02788933,3596.8,3596.0,0.1392]
[1754056872142,0.1392,3596.1,3594.8,4.985]
[1754056872358,1.1817,3596.0,3595.6,0.1392]
[1754056872542,0.1392,3596.1,3595.6,0.1392]
[1754056872862,1.1817,3595.9,3595.6,0.1392]
[1754056873064,0.48788933,3595.8,3595.3,0.1392]
[1754056873277,0.1392,3595.5,3595.0,0.1392]
[1754056873583,0.1392,3595.5,3595.4,2.7813317]
[1754056873870,0.1392,3595.5,3595.4,6.3313317]
[1754056874080,1.1817,3595.9,3595.2,2.781468]
[1754056874262,0.02788933,3595.8,3595.4,0.1392]
[1754056874439,1.34865893,3595.9,3594.6,3.23452339]
[1754056874440,0.1392,3595.6,3595.1,0.1392]
[1754056874640,1.1817,3595.5,3595.1,0.1392]
[1754056874986,0.1392,3595.6,3595.0,0.1392]
[1754056875301,1.1817,3595.5,3594.4,3.4546]
[1754056875444,1.1817,3595.5,3595.0,2.92081656]
[1754056875644,1.1817,3595.4,3594.5,0.55]
[1754056875867,1.6417,3595.4,3595.0,0.1392]
[1754056876039,0.46,3595.3,3594.8,0.1392]
[1754056876244,0.46,3595.3,3594.4,2.7840916]
[1754056876245,0.1392,3595.1,3594.4,0.002]
[1754056876444,2.38334455,3595.1,3594.5,0.1392]
[1754056876885,1.1817,3595.0,3594.5,0.1392]
[1754056877064,0.02788933,3594.9,3594.4,0.002]
[1754056877266,0.1392,3594.5,3594.4,0.002]
[1754056877593,1.1817,3594.8,3594.5,0.1392]
[1754056877746,1.1817,3594.8,3594.4,0.002]